fUSD/lending_fUSD_20240109
["ID","MTS","AMOUNT","RATE_DAILY","PERIOD"]
[310957882,1704835948799,-555.34,0.00041178,30]
[310957883,1704835948824,-500.0,0.00041178,30]
[310957884,1704835948857,-551.84,0.00041178,30]
[310957885,1704835948889,-500.0,0.00041178,30]
[310957886,1704835948912,-500.0,0.00041178,30]
[310957887,1704835948943,-500.0,0.00041178,30]
[310957888,1704835948966,-500.0,0.00041178,30]
[310957889,1704835948988,-500.0,0.00041178,30]
[310957890,1704835949006,-500.0,0.00041178,30]
[310957891,1704835949028,-500.0,0.00041178,30]
[310957892,1704835949055,-500.0,0.00041178,30]
[310957893,1704835949075,-576.84,0.00041178,30]
[310957894,1704835949092,-1038.11,0.00041178,30]
[310957895,1704835949126,-1217.37,0.00041178,30]
[310957896,1704835949147,-500.0,0.00041178,30]
[310957897,1704835949172,-500.0,0.00041178,30]
[310957898,1704835949188,-500.0,0.00041178,30]
[310957899,1704835949204,-500.0,0.00041178,30]
[310957900,1704835949219,-1358.69,0.00041178,30]
[310957901,1704835949238,-362.74296957,0.00041178,30]
[310957902,1704835949252,-500.0,0.00041178,30]
[310957903,1704835949267,-234.05058723,0.00041178,30]
[310957904,1704835949284,-500.0,0.00041178,30]
[310957905,1704835949299,-500.0,0.00041178,30]
[310957906,1704835949322,-500.0,0.00041178,30]
[310957907,1704835949338,-500.0,0.00041178,30]
[310957908,1704835949355,-500.0,0.00041178,30]
[310957909,1704835949375,-1307.04,0.00041178,30]
[310957910,1704835949399,-2306.18,0.00041178,30]
[310957911,1704835949422,-500.0,0.00041178,30]
[310957912,1704835949452,-500.0,0.00041178,30]
[310957913,1704835949477,-500.0,0.00041178,30]
[310957914,1704835949498,-500.0,0.00041178,30]
[310957915,1704835949527,-1192.74,0.00041178,30]
[310957916,1704835949556,-500.0,0.00041178,30]
[310957917,1704835949573,-500.0,0.00041178,30]
[310957918,1704835949592,-500.0,0.00041178,30]
[310957919,1704835949611,-500.0,0.00041178,30]
[310957920,1704835949632,-328.49246097,0.00041178,30]
[310957921,1704835949655,-500.0,0.00041178,30]
[310957922,1704835949691,-611.23,0.00041178,30]
[310957923,1704835949725,-907.9,0.00041178,30]
[310957924,1704835949741,-500.0,0.00041178,30]
[310957925,1704835949757,-500.0,0.00041178,30]
[310957926,1704835949772,-996.68,0.00041178,30]
[310957927,1704835949789,-500.0,0.00041178,30]
[310957928,1704835949803,-500.0,0.00041178,30]
[310957929,1704835949829,-500.0,0.00041178,30]
[310957930,1704835949857,-627.06,0.00041178,30]
[310957931,1704835949875,-187.04279503,0.00041178,30]
[310957932,1704835949900,-500.0,0.00041178,30]
[310957933,1704835949915,-500.0,0.00041178,30]
[310957934,1704835949937,-469.35558211,0.00041178,30]
[310957935,1704835949953,-500.0,0.00041178,30]
[310957936,1704835949975,-500.0,0.00041178,30]
[310957937,1704835949991,-503.95,0.00041178,30]
[310957938,1704835950004,-500.0,0.00041178,30]
[310957939,1704835950027,-500.0,0.00041178,30]
[310957940,1704835950051,-968.8,0.00041178,30]
[310957941,1704835950078,-635.82,0.00041178,30]
[310957942,1704835950093,-500.0,0.00041178,30]
[310957943,1704835950108,-1396.88,0.00041178,30]
[310957944,1704835950122,-1404.61,0.00041178,30]
[310957945,1704835950139,-500.0,0.00041178,30]
[310957946,1704835950157,-1231.44,0.00041178,30]
[310957947,1704835950173,-500.0,0.00041178,30]
[310957948,1704835950196,-554.78,0.00041178,30]
[310957949,1704835950212,-500.0,0.00041178,30]
[310957950,1704835950227,-500.0,0.00041178,30]
[310957951,1704835950245,-1763.53,0.00041178,30]
[310957952,1704835950270,-500.0,0.00041178,30]
[310957953,1704835950286,-801.87,0.00041178,30]
[310957954,1704835950313,-500.0,0.00041178,30]
[310957955,1704835950346,-604.58,0.00041178,30]
[310957956,1704835950366,-500.0,0.00041178,30]
[310957957,1704835950386,-1257.01,0.00041178,30]
[310957958,1704835950406,-500.0,0.00041178,30]
[310957959,1704835950427,-500.0,0.00041178,30]
[310957961,1704835950449,-1231.81,0.00041178,30]
[310957962,1704835950479,-503.44481492,0.00041178,30]
[310957963,1704835950497,-500.0,0.00041178,30]
[310957964,1704835950511,-500.0,0.00041178,30]
[310957965,1704835950534,-2010.91,0.00041178,30]
[310957966,1704835950558,-500.0,0.00041178,30]
[310957967,1704835950575,-1440.75,0.00041178,30]
[310957968,1704835950597,-500.0,0.00041178,30]
[310957969,1704835950622,-896.14,0.00041178,30]
[310957970,1704835950646,-500.0,0.00041178,30]
[310957971,1704835950662,-1418.35,0.00041178,30]
[310957972,1704835950702,-500.0,0.00041178,30]
[310957973,1704835950722,-500.0,0.00041178,30]
[310957974,1704835950743,-500.0,0.00041178,30]
[310957975,1704835950761,-500.0,0.00041178,30]
[310957976,1704835950785,-632.29,0.00041178,30]
[310957977,1704835950810,-921.45,0.00041178,30]
[310957978,1704835950830,-808.1,0.00041178,30]
[310957979,1704835950851,-1164.7,0.00041178,30]
[310957980,1704835950869,-500.0,0.00041178,30]
[310957981,1704835950891,-500.0,0.00041178,30]
[310957982,1704835950906,-1186.03,0.00041178,30]
[310957983,1704835950926,-500.0,0.00041178,30]
[310957984,1704835950951,-640.28,0.00041178,30]
[310957985,1704835950972,-1027.4,0.00041178,30]
[310957986,1704835951002,-500.0,0.00041178,30]
[310957987,1704835951028,-1105.56,0.00041178,30]
[310957988,1704835951046,-500.0,0.00041178,30]
[310957989,1704835951071,-602.96,0.00041178,30]
[310957990,1704835951086,-943.57,0.00041178,30]
[310957991,1704835951105,-500.0,0.00041178,30]
[310957992,1704835951119,-771.07,0.00041178,30]
[310957993,1704835951137,-500.0,0.00041178,30]
[310957994,1704835951159,-500.0,0.00041178,30]
[310957995,1704835951182,-500.0,0.00041178,30]
[310957996,1704835951202,-500.0,0.00041178,30]
[310957997,1704835951224,-1051.31,0.00041178,30]
[310957998,1704835951239,-916.0,0.00041178,30]
[310957999,1704835951257,-500.0,0.00041178,5]
[310958000,1704835951279,-500.0,0.00041178,30]
[310958001,1704835951293,-1267.33,0.00041178,30]
[310958002,1704835951317,-538.74,0.00041178,7]
[310958003,1704835951346,-701.87,0.00041178,30]
[310958004,1704835951382,-500.0,0.00041178,30]
[310958005,1704835951411,-1238.29,0.00041178,30]
[310958006,1704835951436,-759.13,0.00041178,30]
[310958007,1704835951468,-500.0,0.00041178,30]
[310958008,1704835951486,-500.0,0.00041178,30]
[310958009,1704835951500,-500.0,0.00041178,30]
[310958010,1704835951517,-606.97,0.00041178,30]
[310958011,1704835951534,-667.99,0.00041178,30]
[310958012,1704835951554,-1550.35,0.00041178,30]
[310958013,1704835951574,-500.0,0.00041178,30]
[310958014,1704835951598,-500.0,0.00041178,30]
[310958015,1704835951622,-500.0,0.00041178,30]
[310958016,1704835951657,-639.29,0.00041178,30]
[310958017,1704835951684,-836.7,0.00041178,30]
[310958018,1704835951707,-896.55,0.00041178,30]
[310958019,1704835951742,-500.0,0.00041178,30]
[310958020,1704835951763,-500.0,0.00041178,30]
[310958021,1704835951781,-500.0,0.00041178,30]
[310958022,1704835951808,-1819.38,0.00041178,30]
[310958023,1704835951827,-548.7,0.00041178,30]
[310958024,1704835951854,-500.0,0.00041178,30]
[310958025,1704835951880,-1272.22,0.00041178,30]
[310958026,1704835951896,-548.83987233,0.00041178,30]
[310958027,1704835951918,-814.27,0.00041178,30]
[310958028,1704835951943,-500.0,0.00041178,30]
[310958029,1704835951970,-500.0,0.00041178,30]
[310958030,1704835951992,-500.0,0.00041178,30]
[310958031,1704835952006,-689.54,0.00041178,30]
[310958032,1704835952022,-515.4,0.00041178,30]
[310958033,1704835952049,-500.0,0.00041178,30]
[310958034,1704835952069,-500.0,0.00041178,30]
[310958035,1704835952084,-2289.47,0.00041178,30]
[310958036,1704835952112,-1865.7,0.00041178,30]
[310958037,1704835952133,-500.0,0.00041178,30]
[310958038,1704835952156,-325.25381922,0.00041178,30]
[310958039,1704835952181,-500.0,0.00041178,30]
[310958040,1704835952196,-500.0,0.00041178,30]
[310958041,1704835952214,-1130.6,0.00041178,30]
[310958042,1704835952239,-180.06093981,0.00041178,30]
[310958043,1704835952264,-500.0,0.00041178,30]
[310958044,1704835952288,-1020.46,0.00041178,30]
[310958045,1704835952311,-500.0,0.00041178,30]
[310958046,1704835952340,-500.0,0.00041178,30]
[310958047,1704835952371,-808.92,0.00041178,30]
[310958048,1704835952402,-765.7,0.00041178,30]
[310958049,1704835952434,-500.0,0.00041178,30]
[310958050,1704835952456,-500.0,0.00041178,30]
[310958051,1704835952481,-500.0,0.00041178,30]
[310958052,1704835952508,-500.0,0.00041178,30]
[310958053,1704835952527,-806.27,0.00041178,30]
[310958054,1704835952547,-1306.79,0.00041178,30]
[310958055,1704835952574,-500.0,0.00041178,30]
[310958056,1704835952603,-500.0,0.00041178,30]
[310958057,1704835952634,-500.0,0.00041178,30]
[310958058,1704835952672,-500.0,0.00041178,30]
[310958059,1704835952698,-500.0,0.00041178,30]
[310958060,1704835952724,-500.0,0.00041178,30]
[310958061,1704835952749,-694.96,0.00041178,30]
[310958062,1704835952776,-1503.44,0.00041178,30]
[310958063,1704835952802,-211.03,0.00041178,30]
[310958064,1704835952826,-500.0,0.00041178,30]
[310958065,1704835952852,-500.0,0.00041178,30]
[310958066,1704835952882,-805.81,0.00041178,30]
[310958067,1704835952906,-500.0,0.00041178,30]
[310958068,1704835952930,-500.0,0.00041178,30]
[310958069,1704835952951,-909.79,0.00041178,30]
[310958070,1704835952970,-1129.19,0.00041178,30]
[310958071,1704835952989,-500.0,0.00041178,30]
[310958072,1704835953007,-500.0,0.00041178,30]
[310958073,1704835953030,-923.88,0.00041178,30]
[310958074,1704835953055,-611.47,0.00041178,30]
[310958075,1704835953077,-3103.78,0.00041178,30]
[310958076,1704835953101,-500.0,0.00041178,30]
[310958077,1704835953151,-500.0,0.00041178,30]
[310958078,1704835953170,-500.0,0.00041178,30]
[310958079,1704835953216,-500.0,0.00041178,30]
[310958080,1704835953250,-3251.04,0.00041178,30]
[310958081,1704835953277,-500.0,0.00041178,30]
[310958082,1704835953324,-512.9,0.00041178,30]
[310958083,1704835953351,-500.0,0.00041178,30]
[310958084,1704835953382,-500.0,0.00041178,30]
[310958085,1704835953403,-740.01,0.00041178,30]
[310958086,1704835953437,-307.39,0.00041178,30]
[310958087,1704835953469,-500.0,0.00041178,30]
[310958088,1704835953500,-546.86,0.00041178,30]
[310958089,1704835953524,-500.0,0.00041178,30]
[310958090,1704835953547,-500.0,0.00041178,30]
[310958091,1704835953564,-1698.45,0.00041178,30]
[310958092,1704835953591,-500.0,0.00041178,30]
[310958093,1704835953630,-500.0,0.00041178,30]
[310958094,1704835953666,-500.0,0.00041178,30]
[310958095,1704835953684,-500.0,0.00041178,30]
[310958096,1704835953699,-321.64709843,0.00041178,30]
[310958097,1704835953725,-500.0,0.00041178,30]
[310958098,1704835953745,-500.0,0.00041178,30]
[310958099,1704835953765,-500.0,0.00041178,30]
[310958100,1704835953797,-500.0,0.00041178,30]
[310958101,1704835953826,-500.0,0.00041178,30]
[310958102,1704835953846,-739.45,0.00041178,30]
[310958103,1704835953875,-1031.59,0.00041178,30]
[310958104,1704835953906,-500.0,0.00041178,30]
[310958105,1704835953936,-1000.0,0.00041178,14]
[310958106,1704835953963,-1341.58,0.00041178,30]
[310958107,1704835953993,-500.0,0.00041178,30]
[310958108,1704835954026,-500.0,0.00041178,30]
[310958109,1704835954047,-500.0,0.00041178,30]
[310958110,1704835954064,-500.0,0.00041178,30]
[310958111,1704835954082,-500.0,0.00041178,30]
[310958112,1704835954102,-579.92,0.00041178,30]
[310958113,1704835954123,-962.12,0.00041178,30]
[310958114,1704835954151,-500.0,0.00041178,30]
[310958115,1704835954174,-500.0,0.00041178,30]
[310958116,1704835954206,-550.03,0.00041178,30]
[310958117,1704835954226,-500.0,0.00041178,30]
[310958118,1704835954247,-500.0,0.00041178,30]
[310958119,1704835954269,-500.0,0.00041178,30]
[310958120,1704835954291,-12867.13,0.00041178,30]
[310958121,1704835954323,-508.00910758,0.00041178,30]
[310958122,1704835954342,-500.0,0.00041178,30]
[310958123,1704835954361,-500.0,0.00041178,30]
[310958124,1704835954382,-500.0,0.00041178,30]
[310958125,1704835954401,-897.67,0.00041178,30]
[310958126,1704835954418,-864.6,0.00041178,30]
[310958127,1704835954438,-550.26,0.00041178,30]
[310958128,1704835954461,-500.0,0.00041178,30]
[310958129,1704835954486,-1997.12,0.00041178,30]
[310958130,1704835954499,-500.0,0.00041178,30]
[310958131,1704835954518,-1195.83,0.00041178,30]
[310958132,1704835954538,-500.0,0.00041178,30]
[310958133,1704835954560,-998.19,0.00041178,30]
[310958134,1704835954583,-500.0,0.00041178,30]
[310958135,1704835954604,-500.0,0.00041178,30]
[310958136,1704835954622,-500.0,0.00041178,30]
[310958137,1704835954645,-48899.91,0.00041178,30]
[310958138,1704835954662,-500.0,0.00041178,30]
[310958139,1704835954685,-500.0,0.00041178,30]
[310958140,1704835954705,-654.66,0.00041178,30]
[310958141,1704835954730,-500.0,0.00041178,30]
[310958142,1704835954750,-2469.86,0.00041178,30]
[310958143,1704835954769,-767.91,0.00041178,30]
[310958144,1704835954798,-808.31,0.00041178,30]
[310958145,1704835954826,-673.33,0.00041178,30]
[310958146,1704835954857,-2192.68,0.00041178,30]
[310958147,1704835954891,-500.0,0.00041178,30]
[310958148,1704835955222,-500.0,0.00041178,30]
[310958149,1704835955311,-2521.48,0.00041178,30]
[310958150,1704835955334,-2801.21,0.00041178,30]
[310958151,1704835955363,-626.68,0.00041178,30]
[310958152,1704835955379,-886.46,0.00041178,30]
[310958153,1704835955419,-1955.03,0.00041178,30]
[310958154,1704835955440,-500.0,0.00041178,30]
[310958155,1704835955476,-500.0,0.00041178,30]
[310958156,1704835955498,-991.57,0.00041178,30]
[310958157,1704835955531,-1009.87,0.00041178,7]
[310958158,1704835955556,-500.0,0.00041178,30]
[310958159,1704835955584,-500.0,0.00041178,30]
[310958160,1704835955605,-500.0,0.00041178,30]
[310958161,1704835955624,-500.0,0.00041178,30]
[310958162,1704835955652,-500.0,0.00041178,30]
[310958163,1704835955675,-828.51,0.00041178,30]
[310958164,1704835955697,-500.0,0.00041178,30]
[310958165,1704835955721,-500.0,0.00041178,30]
[310958166,1704835955745,-2108.88,0.00041178,30]
[310958167,1704835955772,-1931.34,0.00041178,30]
[310958168,1704835955795,-822.65,0.00041178,30]
[310958169,1704835955823,-3347.6,0.00041178,30]
[310958170,1704835955842,-14790.64,0.00041178,30]
[310958171,1704835955858,-500.0,0.00041178,7]
[310958172,1704835955889,-500.0,0.00041178,30]
[310958173,1704835955917,-500.0,0.00041178,30]
[310958174,1704835955949,-500.0,0.00041178,30]
[310958175,1704835955968,-1430.23,0.00041178,30]
[310958176,1704835955993,-500.0,0.00041178,30]
[310958177,1704835956014,-5678.13,0.00041178,30]
[310958178,1704835956033,-610.39,0.00041178,30]
[310958179,1704835956061,-1617.86,0.00041178,30]
[310958180,1704835956080,-1087.77,0.00041178,30]
[310958181,1704835956098,-500.0,0.00041178,30]
[310958182,1704835956120,-500.0,0.00041178,30]
[310958183,1704835956150,-733.18,0.00041178,30]
[310958184,1704835956171,-2799.84,0.00041178,30]
[310958185,1704835956189,-2846.34,0.00041178,30]
[310958186,1704835956209,-796.49,0.00041178,30]
[310958187,1704835956228,-500.0,0.00041178,30]
[310958188,1704835956248,-500.0,0.00041178,30]
[310958189,1704835956267,-500.0,0.00041178,30]
[310958190,1704835956284,-500.0,0.00041178,30]
[310958191,1704835956302,-500.0,0.00041178,30]
[310958192,1704835956314,-1593.04,0.00041178,30]
[310958193,1704835956325,-500.0,0.00041178,30]
[310958194,1704835956340,-500.0,0.00041178,30]
[310958195,1704835956357,-1520.5,0.00041178,30]
[310958196,1704835956371,-502.92,0.00041178,30]
[310958197,1704835956387,-1804.05,0.00041178,30]
[310958198,1704835956398,-539.66,0.00041178,30]
[310958199,1704835956411,-857.84,0.00041178,30]
[310958200,1704835956424,-500.0,0.00041178,30]
[310958201,1704835956436,-1689.37,0.00041178,30]
[310958202,1704835956449,-1039.06,0.00041178,30]
[310958203,1704835956462,-4621.51,0.00041178,30]
[310958204,1704835956475,-500.0,0.00041178,30]
[310958205,1704835956487,-704.14,0.00041178,30]
[310958206,1704835956499,-1420.75,0.00041178,30]
[310958207,1704835956512,-500.0,0.00041178,30]
[310958208,1704835956523,-4643.53,0.00041178,30]
[310958209,1704835956536,-500.0,0.00041178,30]
[310958210,1704835956549,-500.0,0.00041178,30]
[310958211,1704835956559,-500.0,0.00041178,30]
[310958212,1704835956570,-571.44,0.00041178,30]
[310958213,1704835956581,-3385.64,0.00041178,30]
[310958214,1704835956593,-500.0,0.00041178,30]
[310958215,1704835956604,-500.0,0.00041178,30]
[310958216,1704835956615,-500.0,0.00041178,30]
[310958217,1704835956625,-500.0,0.00041178,30]
[310958218,1704835956638,-500.0,0.00041178,30]
[310958219,1704835956648,-2540.83,0.00041178,30]
[310958220,1704835956659,-965.39,0.00041178,30]
[310958221,1704835956669,-500.0,0.00041178,30]
[310958222,1704835956680,-500.0,0.00041178,30]
[310958223,1704835956691,-2213.16,0.00041178,30]
[310958224,1704835956702,-791.0,0.00041178,30]
[310958225,1704835956712,-500.0,0.00041178,30]
[310958226,1704835956722,-276.82704238,0.00041178,30]
[310958227,1704835956731,-500.0,0.00041178,30]
[310958228,1704835956741,-500.0,0.00041178,30]
[310958229,1704835956751,-846.61,0.00041178,30]
[310958230,1704835956761,-2650.5,0.00041178,30]
[310958231,1704835956771,-786.95,0.00041178,30]
[310958232,1704835956781,-500.0,0.00041178,30]
[310958233,1704835956792,-500.0,0.00041178,30]
[310958234,1704835956803,-500.0,0.00041178,30]
[310958235,1704835956813,-1349.94,0.00041178,30]
[310958236,1704835956822,-832.69,0.00041178,30]
[310958237,1704835956832,-2311.91,0.00041178,30]
[310958238,1704835956842,-500.0,0.00041178,30]
[310958239,1704835956851,-500.0,0.00041178,30]
[310958240,1704835956861,-1396.93,0.00041178,30]
[310958241,1704835956870,-14690.46,0.00041178,30]
[310958242,1704835956882,-500.0,0.00041178,30]
[310958243,1704835956893,-500.0,0.00041178,30]
[310958244,1704835956902,-2102.03,0.00041178,30]
[310958245,1704835956912,-500.0,0.00041178,30]
[310958246,1704835956921,-500.0,0.00041178,30]
[310958247,1704835956930,-6568.56,0.00041178,30]
[310958248,1704835956940,-3431.96,0.00041178,30]
[310958249,1704835956949,-500.0,0.00041178,30]
[310958250,1704835956959,-2567.2,0.00041178,30]
[310958251,1704835956969,-500.0,0.00041178,30]
[310958252,1704835956979,-534.6,0.00041178,30]
[310958253,1704835956988,-4057.32,0.00041178,30]
[310958254,1704835956998,-1036.03,0.00041178,30]
[310958255,1704835957009,-500.0,0.00041178,30]
[310958256,1704835957019,-5465.29,0.00041178,30]
[310958257,1704835957028,-1046.98,0.00041178,30]
[310958258,1704835957038,-558.03,0.00041178,30]
[310958259,1704835957049,-707.65,0.00041178,30]
[310958260,1704835957059,-503.66,0.00041178,30]
[310958261,1704835957069,-3677.68,0.00041178,30]
[310958262,1704835957078,-500.0,0.00041178,30]
[310958263,1704835957088,-500.0,0.00041178,30]
[310958264,1704835957098,-2255.93,0.00041178,30]
[310958265,1704835957108,-2496.21,0.00041178,30]
[310958266,1704835957119,-2311.14,0.00041178,30]
[310958267,1704835957129,-500.0,0.00041178,30]
[310958268,1704835957143,-3376.56,0.00041178,30]
[310958269,1704835957154,-692.76,0.00041178,30]
[310958270,1704835957164,-1358.66,0.00041178,30]
[310958271,1704835957174,-500.0,0.00041178,30]
[310958272,1704835957184,-769.11,0.00041178,30]
[310958273,1704835957194,-500.0,0.00041178,30]
[310958274,1704835957205,-1845.73,0.00041178,30]
[310958275,1704835957215,-13108.96,0.00041178,30]
[310958276,1704835957225,-500.0,0.00041178,30]
[310958277,1704835957235,-500.0,0.00041178,30]
[310958278,1704835957244,-9899.51,0.00041178,30]
[310958279,1704835957254,-1387.57,0.00041178,30]
[310958280,1704835957264,-500.0,0.00041178,2]
[310958281,1704835957274,-1436.88,0.00041178,30]
[310958282,1704835957283,-10579.54,0.00041178,30]
[310958283,1704835957293,-1868.59,0.00041178,30]
[310958284,1704835957302,-1636.08,0.00041178,30]
[310958285,1704835957312,-500.0,0.00041178,30]
[310958286,1704835957322,-780.53,0.00041178,30]
[310958287,1704835957334,-500.0,0.00041178,30]
[310958288,1704835957343,-583.25,0.00041178,30]
[310958289,1704835957353,-7300.87,0.00041178,30]
[310958290,1704835957363,-500.0,0.00041178,30]
[310958291,1704835957375,-1200.98,0.00041178,30]
[310958292,1704835957390,-2024.47,0.00041178,30]
[310958293,1704835957400,-1010.7,0.00041178,30]
[310958294,1704835957411,-500.0,0.00041178,30]
[310958295,1704835957424,-1279.36,0.00041178,30]
[310958296,1704835957434,-829.24,0.00041178,30]
[310958297,1704835957444,-1022.82,0.00041178,30]
[310958298,1704835957455,-663.65,0.00041178,30]
[310958299,1704835957465,-500.0,0.00041178,30]
[310958300,1704835957475,-500.0,0.00041178,30]
[310958301,1704835957485,-1276.96,0.00041178,30]
[310958302,1704835957494,-719.05,0.00041178,30]
[310958303,1704835957504,-5923.58,0.00041178,30]
[310958304,1704835957514,-1955.18,0.00041178,30]
[310958305,1704835957523,-500.0,0.00041178,30]
[310958306,1704835957533,-1076.29,0.00041178,30]
[310958307,1704835957543,-3773.23,0.00041178,30]
[310958308,1704835957552,-3976.14,0.00041178,30]
[310958309,1704835957562,-1442.56,0.00041178,30]
[310958310,1704835957572,-500.0,0.00041178,30]
[310958311,1704835957581,-2969.33,0.00041178,30]
[310958312,1704835957591,-500.0,0.00041178,30]
[310958313,1704835957601,-1085.14,0.00041178,30]
[310958314,1704835957611,-500.0,0.00041178,5]
[310958315,1704835957621,-546.98,0.00041178,30]
[310958316,1704835957631,-500.0,0.00041178,30]
[310958317,1704835957645,-1958.44,0.00041178,30]
[310958318,1704835957655,-500.0,0.00041178,30]
[310958319,1704835957665,-500.0,0.00041178,30]
[310958320,1704835957675,-500.0,0.00041178,30]
[310958321,1704835957684,-6261.12,0.00041178,30]
[310958322,1704835957694,-1066.92,0.00041178,30]
[310958323,1704835957704,-500.0,0.00041178,30]
[310958324,1704835957714,-645.66,0.00041178,30]
[310958325,1704835957724,-1757.07,0.00041178,30]
[310958326,1704835957733,-2874.62,0.00041178,30]
[310958327,1704835957743,-894.85,0.00041178,30]
[310958328,1704835957753,-242.77,0.00041178,30]
[310958329,1704835957763,-3862.71,0.00041178,30]
[310958330,1704835957772,-4543.27,0.00041178,30]
[310958331,1704835957782,-500.0,0.00041178,30]
[310958332,1704835957792,-1341.14,0.00041178,30]
[310958333,1704835957801,-901.82,0.00041178,30]
[310958334,1704835957811,-500.0,0.00041178,30]
[310958335,1704835957820,-577.82,0.00041178,30]
[310958336,1704835957830,-500.0,0.00041178,30]
[310958337,1704835957839,-500.0,0.00041178,30]
[310958338,1704835957849,-3856.08,0.00041178,30]
[310958339,1704835957859,-1349.44,0.00041178,30]
[310958340,1704835957868,-500.0,0.00041178,30]
[310958341,1704835957878,-1130.33,0.00041178,30]
[310958342,1704835957892,-588.78,0.00041178,30]
[310958343,1704835957902,-1641.57,0.00041178,30]
[310958344,1704835957912,-500.0,0.00041178,30]
[310958345,1704835957922,-760.68,0.00041178,30]
[310958346,1704835957933,-1586.06,0.00041178,30]
[310958347,1704835957943,-857.88,0.00041178,30]
[310958348,1704835957953,-3762.07,0.00041178,30]
[310958349,1704835957962,-536.72,0.00041178,30]
[310958350,1704835957971,-500.0,0.00041178,30]
[310958351,1704835957981,-500.0,0.00041178,30]
[310958352,1704835957990,-550.1,0.00041178,30]
[310958353,1704835957999,-500.0,0.00041178,30]
[310958354,1704835958008,-4420.44,0.00041178,30]
[310958355,1704835958018,-4355.86,0.00041178,30]
[310958356,1704835958027,-1511.36,0.00041178,30]
[310958357,1704835958036,-500.0,0.00041178,30]
[310958358,1704835958045,-500.0,0.00041178,30]
[310958359,1704835958055,-1161.02,0.00041178,30]
[310958360,1704835958064,-10725.89,0.00041178,30]
[310958361,1704835958073,-500.0,0.00041178,30]
[310958362,1704835958082,-500.0,0.00041178,30]
[310958363,1704835958091,-500.0,0.00041178,30]
[310958364,1704835958101,-1044.46,0.00041178,30]
[310958365,1704835958111,-929.83,0.00041178,30]
[310958366,1704835958121,-867.5,0.00041178,30]
[310958367,1704835958131,-720.34,0.00041178,30]
[310958368,1704835958144,-6977.93,0.00041178,30]
[310958369,1704835958154,-500.0,0.00041178,30]
[310958370,1704835958163,-500.0,0.00041178,30]
[310958371,1704835958173,-500.0,0.00041178,30]
[310958372,1704835958182,-964.23,0.00041178,30]
[310958373,1704835958191,-500.0,0.00041178,30]
[310958374,1704835958201,-1586.56,0.00041178,30]
[310958375,1704835958211,-3056.94,0.00041178,30]
[310958376,1704835958221,-500.0,0.00041178,7]
[310958377,1704835958230,-500.0,0.00041178,30]
[310958378,1704835958240,-500.0,0.00041178,30]
[310958379,1704835958250,-1370.1,0.00041178,30]
[310958380,1704835958259,-500.0,0.00041178,30]
[310958381,1704835958269,-500.0,0.00041178,30]
[310958382,1704835958279,-3469.89,0.00041178,30]